fUSD/lending_fUSD_20250612
["ID","MTS","AMOUNT","RATE_DAILY","PERIOD"]
[365466851,1749688238542,-461.31,0.0001901,2]
[365466852,1749688238551,-461.31,0.0001901,2]
[365466853,1749688238560,-461.31,0.0001901,2]
[365466854,1749688238569,-461.31,0.0001901,2]
[365466856,1749688238578,-461.31,0.0001901,2]
[365466858,1749688238587,-461.31,0.0001901,2]
[365466860,1749688238597,-172.41,0.0001901,2]
[365466862,1749688238606,-1302.82,0.00019015,2]
[365466864,1749688238615,-208.93896054,0.00019025,2]
[365466866,1749688238624,-2605.64,0.00019042,2]
[365466868,1749688238634,-2228.2296,0.00019078,2]
[365466870,1749688238643,-2095.13249324,0.00019078,2]
[365466872,1749688238652,-160.78004112,0.00019078,2]
[365466874,1749688238661,-168.03527658,0.00019078,2]
[365466876,1749688238670,-208.93896054,0.00019088,2]
[365466878,1749688238679,-500.0,0.00019124,2]
[365466880,1749688238688,-208.93896054,0.0001915,2]
[365466882,1749688238697,-2095.13249322,0.00019151,2]
[365466884,1749688238706,-160.78004104,0.00019151,2]
[365466886,1749688238715,-350.0,0.00019159,2]
[365466888,1749688238724,-150.12,0.00019168,2]
[365466890,1749688238734,-150.12,0.00019168,2]
[365466891,1749688238743,-150.12,0.00019168,2]
[365466893,1749688238752,-150.12,0.00019168,2]
[365466895,1749688238761,-150.12,0.00019168,2]
[365466897,1749688238770,-150.12,0.00019168,2]
[365466899,1749688238779,-150.12,0.00019168,2]
[365466901,1749688238789,-150.12,0.00019168,2]
[365466903,1749688238798,-150.12,0.00019168,2]
[365466905,1749688238807,-150.12,0.00019168,2]
[365466907,1749688238816,-150.12,0.00019168,2]
[365466909,1749688238826,-170.32177766,0.00019168,2]
[365466910,1749688238835,-150.12,0.00019168,2]
[365466911,1749688238844,-150.12,0.00019168,2]
[365466912,1749688238853,-150.12,0.00019168,2]
[365466913,1749688238862,-150.12,0.00019168,2]
[365466914,1749688238870,-150.12,0.00019168,2]
[365466915,1749688238881,-500.0,0.00019173,2]
[365466916,1749688238891,-500.0,0.00019173,2]
[365466917,1749688238900,-16404.70118393,0.00019176,2]
[365466918,1749688238918,-572.59653502,0.00019176,2]
[365466923,1749688238955,-978.41383754,0.00019176,2]
[365466926,1749688238966,-601.87232564,0.00019176,2]
[365467073,1749688240370,-547.32439502,0.00019176,2]
[365467076,1749688240384,-1736.17842536,0.00019176,2]
[365467083,1749688240537,-7478.85656979,0.00019176,2]
[365467084,1749688240592,-101614.9607276,0.00019176,2]
[365467085,1749688240602,-1217.11725219,0.00019178,2]
[365467086,1749688240612,-2031.81199855,0.00019178,3]
[365467087,1749688240621,-833.29909032,0.00019178,3]
[365467088,1749688240632,-651456.40227729,0.00019178,3]
[365467100,1749688240751,-594.40251321,0.00019178,3]
[365467103,1749688240763,-690.01496201,0.00019178,3]
[365467105,1749688240774,-15541.60048666,0.00019178,3]
[365467107,1749688240786,-8947.21879473,0.00019178,3]
[365467109,1749688240797,-8943.78386462,0.00019178,3]
[365467111,1749688240809,-9077.54866152,0.00019178,3]
[365467114,1749688240820,-8943.84023489,0.00019178,3]
[365467333,1749688243299,-200.0,0.00018096,2]
[365467334,1749688243309,-88.55688005,0.00019178,3]
[365467339,1749688243409,-17586.43508861,0.00019178,3]
[365467346,1749688243464,-594.18251917,0.00019178,3]
[365467348,1749688243475,-591.21314926,0.00019178,3]
[365467354,1749688243523,-8027.45368396,0.00019178,3]
[365467356,1749688243534,-11009.5376428,0.00019178,3]
[365467358,1749688243545,-608.87467582,0.00019178,3]
[365467363,1749688243576,-5615.48317916,0.00019178,3]
[365467521,1749688246196,-824.42213653,0.00019178,3]
[365467522,1749688246208,-752.41507584,0.00019178,3]
[365467524,1749688246224,-610.80686445,0.00019178,3]
[365467526,1749688246235,-1832.57779,0.00019178,3]
[365467529,1749688246254,-946.21225572,0.00019178,3]
[365467530,1749688246310,-2846.85033329,0.00019178,3]
[365467531,1749688246367,-15845.68058067,0.00019178,3]
[365467532,1749688246378,-614.53397887,0.00019178,3]
[365467533,1749688246390,-1810.88362775,0.00019178,3]
[365467534,1749688246402,-3776.54776247,0.00019178,3]
[365467535,1749688246413,-308.65503461,0.00019178,3]
[365467536,1749688246424,-340.14,0.00019178,3]
[365467537,1749688246434,-7658.07572096,0.00019178,3]
[365467538,1749688246453,-65954.96893239,0.00019178,3]
[365467539,1749688246464,-566.41579908,0.00019178,3]
[365467540,1749688246476,-429.59841834,0.00019178,3]
[365467541,1749688246497,-253.40828031,0.00019178,3]
[365467542,1749688246508,-396430.4425163,0.00019178,3]
[365467543,1749688246518,-162.848445,0.00019178,2]
[365467544,1749688246527,-151.625478,0.00019178,2]
[365467545,1749688246536,-490.0,0.00019178,2]
[365467546,1749688246546,-458.14852214,0.00019178,2]
[365467547,1749688246555,-156.406604,0.00019178,2]
[365467548,1749688246564,-155.526822,0.00019178,2]
[365467549,1749688246573,-200.0,0.00019178,2]
[365467550,1749688246585,-165.302407,0.00019178,2]
[365467551,1749688246595,-490.0,0.00019178,2]
[365467552,1749688246604,-250.0,0.00019178,2]
[365467554,1749688246613,-490.0,0.00019178,2]
[365467556,1749688246623,-490.0,0.00019178,2]
[365467558,1749688246632,-420.0,0.00019178,2]
[365467560,1749688246643,-490.0,0.00019178,2]
[365467562,1749688246652,-490.0,0.00019178,2]
[365467564,1749688246662,-490.0,0.00019178,2]
[365467566,1749688246671,-490.0,0.00019178,2]
[365467568,1749688246681,-490.0,0.00019178,2]
[365467570,1749688246690,-159.35774265,0.00019178,2]
[365467572,1749688246699,-490.0,0.00019178,2]
[365467574,1749688246708,-490.0,0.00019178,2]
[365467576,1749688246719,-430.0,0.00019178,2]
[365467578,1749688246728,-490.0,0.00019178,2]
[365467580,1749688246738,-490.0,0.00019178,2]
[365467582,1749688246748,-470.0,0.00019178,2]
[365467584,1749688246757,-480.0,0.00019178,2]
[365467586,1749688246767,-339.11644418,0.00019178,2]
[365467588,1749688246776,-490.0,0.00019178,2]
[365467590,1749688246785,-490.0,0.00019178,2]
[365467592,1749688246794,-226.81055674,0.00019178,2]
[365467594,1749688246803,-470.0,0.00019178,2]
[365467596,1749688246812,-490.0,0.00019178,2]
[365467598,1749688246821,-470.0,0.00019178,2]
[365467600,1749688246831,-521.94,0.00019178,2]
[365467602,1749688246840,-208.36936301,0.00019178,2]
[365467604,1749688246850,-490.0,0.00019178,2]
[365467606,1749688246859,-490.0,0.00019178,2]
[365467607,1749688246868,-490.0,0.00019178,2]
[365467609,1749688246877,-490.0,0.00019178,2]
[365467611,1749688246887,-490.0,0.00019178,2]
[365467614,1749688246897,-490.0,0.00019178,2]
[365467616,1749688246906,-475.37750756,0.00019178,2]
[365467618,1749688246916,-490.0,0.00019178,2]
[365467619,1749688246925,-490.0,0.00019178,2]
[365467621,1749688246935,-480.0,0.00019178,2]
[365467623,1749688246945,-490.0,0.00019178,2]
[365467625,1749688246954,-427.01777919,0.00019178,2]
[365467627,1749688246963,-480.0,0.00019178,2]
[365467629,1749688246972,-411.00564361,0.00019178,2]
[365467631,1749688246983,-490.0,0.00019178,2]
[365467634,1749688246994,-490.0,0.00019178,2]
[365467636,1749688247003,-441.02948003,0.00019178,2]
[365467638,1749688247013,-460.0,0.00019178,2]
[365467640,1749688247022,-480.0,0.00019178,2]
[365467642,1749688247031,-151.0,0.00019178,2]
[365467644,1749688247041,-490.0,0.00019178,2]
[365467646,1749688247051,-480.0,0.00019178,2]
[365467648,1749688247060,-480.0,0.00019178,2]
[365467650,1749688247069,-490.0,0.00019178,2]
[365467652,1749688247078,-490.0,0.00019178,2]
[365467654,1749688247087,-490.0,0.00019178,2]
[365467656,1749688247098,-480.0,0.00019178,2]
[365467658,1749688247107,-490.0,0.00019178,2]
[365467660,1749688247116,-500.0,0.00019178,2]
[365467662,1749688247126,-490.0,0.00019178,2]
[365467664,1749688247135,-490.0,0.00019178,2]
[365467666,1749688247148,-490.0,0.00019178,2]
[365467668,1749688247158,-490.0,0.00019178,2]
[365467670,1749688247167,-490.0,0.00019178,2]
[365467672,1749688247176,-480.0,0.00019178,2]
[365467674,1749688247186,-480.0,0.00019178,2]
[365467676,1749688247196,-490.0,0.00019178,2]
[365467678,1749688247206,-490.0,0.00019178,2]
[365467680,1749688247216,-480.0,0.00019178,2]
[365467682,1749688247227,-480.0,0.00019178,2]
[365467684,1749688247237,-200.0,0.00019178,2]
[365467685,1749688247246,-150.0,0.00019178,2]
[365467688,1749688247256,-175.601561,0.00019178,2]
[365467690,1749688247266,-460.0,0.00019178,2]
[365467692,1749688247275,-175.601561,0.00019178,2]
[365467693,1749688247288,-303.55498593,0.00019178,2]
[365467694,1749688247306,-480.0,0.00019178,2]
[365467695,1749688247315,-532.0,0.00019178,2]
[365467696,1749688247325,-490.0,0.00019178,2]
[365467697,1749688247334,-490.0,0.00019178,2]
[365467698,1749688247343,-1003.88,0.00019178,2]
[365467699,1749688247352,-480.0,0.00019178,2]
[365467700,1749688247362,-151.0,0.00019178,2]
[365467702,1749688247372,-151.0,0.00019178,2]
[365467703,1749688247381,-680.56,0.00019178,2]
[365467704,1749688247391,-550.79,0.00019178,2]
[365467706,1749688247401,-490.0,0.00019178,2]
[365467708,1749688247411,-480.0,0.00019178,2]
[365467710,1749688247420,-490.0,0.00019178,2]
[365467712,1749688247430,-490.0,0.00019178,2]
[365467714,1749688247439,-490.0,0.00019178,2]
[365467716,1749688247448,-260.0,0.00019178,2]
[365467718,1749688247458,-490.0,0.00019178,2]
[365467720,1749688247467,-490.0,0.00019178,2]
[365467722,1749688247477,-480.0,0.00019178,2]
[365467724,1749688247487,-480.0,0.00019178,2]
[365467726,1749688247496,-490.0,0.00019178,2]
[365467728,1749688247506,-480.0,0.00019178,2]
[365467730,1749688247515,-490.0,0.00019178,2]
[365467732,1749688247525,-540.06,0.00019178,2]
[365467734,1749688247534,-151.0,0.00019178,2]
[365467736,1749688247544,-151.0,0.00019178,2]
[365467738,1749688247554,-480.0,0.00019178,2]
[365467740,1749688247563,-420.86623995,0.00019178,2]
[365467742,1749688247573,-624.08829967,0.00019178,2]
[365467744,1749688247582,-490.0,0.00019178,2]
[365467746,1749688247591,-558.40647016,0.00019178,2]
[365467748,1749688247600,-817.4,0.00019178,2]
[365467750,1749688247610,-490.0,0.00019178,2]
[365467752,1749688247621,-490.0,0.00019178,2]
[365467754,1749688247632,-480.0,0.00019178,2]
[365467756,1749688247642,-490.0,0.00019178,2]
[365467758,1749688247651,-490.0,0.00019178,2]
[365467760,1749688247661,-490.0,0.00019178,2]
[365467762,1749688247670,-490.0,0.00019178,2]
[365467764,1749688247680,-490.0,0.00019178,2]
[365467766,1749688247689,-151.0,0.00019178,2]
[365467768,1749688247698,-511.53,0.00019178,2]
[365467770,1749688247708,-490.0,0.00019178,2]
[365467772,1749688247717,-490.0,0.00019178,2]
[365467774,1749688247726,-173.374843,0.00019178,2]
[365467776,1749688247736,-490.0,0.00019178,2]
[365467778,1749688247746,-490.0,0.00019178,2]
[365467780,1749688247755,-490.0,0.00019178,2]
[365467782,1749688247765,-534.09,0.00019178,2]
[365467784,1749688247775,-810.42,0.00019178,2]
[365467786,1749688247784,-494.44435488,0.00019178,2]
[365467788,1749688247793,-490.0,0.00019178,2]
[365467790,1749688247803,-589.87,0.00019178,2]
[365467792,1749688247812,-480.0,0.00019178,2]
[365467794,1749688247825,-490.0,0.00019178,2]
[365467796,1749688247836,-243.76123,0.00019178,2]
[365467798,1749688247845,-480.0,0.00019178,2]
[365467800,1749688247854,-490.0,0.00019178,2]
[365467802,1749688247863,-638.99,0.00019178,2]
[365467804,1749688247872,-490.0,0.00019178,2]
[365467806,1749688247882,-490.0,0.00019178,2]
[365467808,1749688247892,-490.0,0.00019178,2]
[365467810,1749688247901,-480.0,0.00019178,2]
[365467812,1749688247911,-243.76123,0.00019178,2]
[365467814,1749688247920,-490.0,0.00019178,2]
[365467816,1749688247930,-490.0,0.00019178,2]
[365467818,1749688247940,-876.39,0.00019178,2]
[365467820,1749688247949,-574.93756288,0.00019178,2]
[365467821,1749688247959,-490.0,0.00019178,2]
[365467824,1749688247968,-238.453437,0.00019178,2]
[365467826,1749688247977,-1095.45,0.00019178,2]
[365467828,1749688247987,-1288.14,0.00019178,2]
[365467830,1749688247996,-490.0,0.00019178,2]
[365467832,1749688248006,-238.453437,0.00019178,2]
[365467834,1749688248015,-490.0,0.00019178,2]
[365467836,1749688248025,-480.0,0.00019178,2]
[365467838,1749688248034,-595.64574364,0.00019178,2]
[365467840,1749688248043,-480.0,0.00019178,2]
[365467842,1749688248053,-480.0,0.00019178,2]
[365467844,1749688248062,-490.0,0.00019178,2]
[365467846,1749688248071,-1354.22,0.00019178,2]
[365467848,1749688248081,-490.0,0.00019178,2]
[365467850,1749688248090,-490.0,0.00019178,2]
[365467852,1749688248099,-490.0,0.00019178,2]
[365467854,1749688248109,-1123.37,0.00019178,2]
[365467856,1749688248118,-414.7864554,0.00019178,2]
[365467858,1749688248127,-490.0,0.00019178,2]
[365467860,1749688248138,-1592.69,0.00019178,2]
[365467862,1749688248147,-490.0,0.00019178,2]
[365467864,1749688248156,-151.0,0.00019178,2]
[365467866,1749688248166,-490.0,0.00019178,2]
[365467868,1749688248175,-1198.21,0.00019178,2]
[365467870,1749688248184,-490.0,0.00019178,2]
[365467872,1749688248194,-490.0,0.00019178,2]
[365467874,1749688248202,-1417.64,0.00019178,2]
[365467876,1749688248214,-953.62,0.00019178,2]
[365467878,1749688248224,-488.59879986,0.00019178,2]
[365467880,1749688248233,-490.0,0.00019178,2]
[365467882,1749688248243,-490.0,0.00019178,2]
[365467884,1749688248252,-746.48,0.00019178,2]
[365467886,1749688248262,-490.0,0.00019178,2]
[365467888,1749688248272,-490.0,0.00019178,2]
[365467890,1749688248282,-490.0,0.00019178,2]
[365467892,1749688248292,-1080.06,0.00019178,2]
[365467894,1749688248302,-592.7345504,0.00019178,2]
[365467896,1749688248313,-1094.04,0.00019178,2]
[365467898,1749688248322,-2115.25,0.00019178,2]
[365467900,1749688248331,-480.0,0.00019178,2]
[365467902,1749688248340,-480.0,0.00019178,2]
[365467903,1749688248349,-480.0,0.00019178,2]
[365467905,1749688248358,-480.0,0.00019178,2]
[365467906,1749688248368,-490.0,0.00019178,2]
[365467908,1749688248378,-480.0,0.00019178,2]
[365467910,1749688248388,-582.55,0.00019178,2]
[365467912,1749688248398,-460.0,0.00019178,2]
[365467913,1749688248408,-961.45,0.00019178,2]
[365467914,1749688248418,-480.0,0.00019178,2]
[365467915,1749688248428,-490.0,0.00019178,2]
[365467916,1749688248437,-490.0,0.00019178,2]
[365467917,1749688248447,-490.0,0.00019178,2]
[365467918,1749688248456,-541.54289394,0.00019178,2]
[365467919,1749688248467,-420.0,0.00019178,2]
[365467920,1749688248477,-579.62,0.00019178,2]
[365467921,1749688248486,-490.0,0.00019178,2]
[365467922,1749688248495,-150.0,0.00019178,2]
[365467923,1749688248505,-1547.41,0.00019178,2]
[365467924,1749688248514,-490.0,0.00019178,2]
[365467925,1749688248524,-490.0,0.00019178,2]
[365467926,1749688248533,-150.0,0.00019178,2]
[365467927,1749688248542,-490.0,0.00019178,2]
[365467928,1749688248551,-150.0,0.00019178,2]
[365467929,1749688248560,-529.2835087,0.00019178,2]
[365467930,1749688248570,-490.0,0.00019178,2]
[365467931,1749688248579,-594.38,0.00019178,2]
[365467932,1749688248589,-706.41,0.00019178,2]
[365467933,1749688248598,-151.76992592,0.00019178,2]
[365467934,1749688248608,-399.4682913,0.00019178,2]
[365467935,1749688248617,-500.0,0.00019178,2]
[365467936,1749688248627,-490.0,0.00019178,2]
[365467937,1749688248636,-1244.63,0.00019178,2]
[365467938,1749688248646,-167.358582,0.00019178,2]
[365467939,1749688248655,-1041.3,0.00019178,2]
[365467940,1749688248665,-430.0,0.00019178,2]
[365467941,1749688248674,-490.0,0.00019178,2]
[365467942,1749688248683,-167.358582,0.00019178,2]
[365467943,1749688248692,-490.0,0.00019178,2]
[365467944,1749688248702,-490.0,0.00019178,2]
[365467945,1749688248712,-490.0,0.00019178,2]
[365467946,1749688248721,-997.74,0.00019178,2]
[365467947,1749688248730,-490.0,0.00019178,2]
[365467948,1749688248739,-490.0,0.00019178,2]
[365467949,1749688248749,-218.59428142,0.00019178,2]
[365467950,1749688248759,-490.0,0.00019178,2]
[365467951,1749688248768,-440.0,0.00019178,2]
[365467952,1749688248777,-490.0,0.00019178,2]
[365467953,1749688248787,-490.0,0.00019178,2]
[365467954,1749688248796,-966.11,0.00019178,2]
[365467955,1749688248805,-1294.77,0.00019178,2]
[365467956,1749688248815,-440.0,0.00019178,2]
[365467957,1749688248826,-490.0,0.00019178,2]
[365467958,1749688248835,-480.0,0.00019178,2]
[365467959,1749688248844,-761.65,0.00019178,2]
[365467960,1749688248854,-490.0,0.00019178,2]
[365467961,1749688248863,-490.0,0.00019178,2]
[365467962,1749688248873,-964.7,0.00019178,2]
[365467963,1749688248883,-490.0,0.00019178,2]
[365467964,1749688248893,-490.0,0.00019178,2]
[365467965,1749688248902,-1248.12,0.00019178,2]
[365467966,1749688248912,-1563.949523,0.00019178,2]
[365467967,1749688248922,-490.0,0.00019178,2]
[365467968,1749688248931,-480.0,0.00019178,2]
[365467969,1749688248941,-490.0,0.00019178,2]
[365467970,1749688248951,-1563.949523,0.00019178,2]
[365467971,1749688248960,-490.0,0.00019178,2]
[365467972,1749688248970,-500.0,0.00019178,2]
[365467973,1749688248980,-480.0,0.00019178,2]
[365467974,1749688248989,-490.0,0.00019178,2]
[365467975,1749688248999,-490.0,0.00019178,2]
[365467976,1749688249008,-490.0,0.00019178,2]
[365467977,1749688249018,-490.0,0.00019178,2]
[365467978,1749688249027,-668.7,0.00019178,2]
[365467979,1749688249037,-500.0,0.00019178,2]
[365467980,1749688249047,-490.0,0.00019178,2]
[365467981,1749688249056,-913.77,0.00019178,2]
[365467982,1749688249066,-480.0,0.00019178,2]
[365467983,1749688249076,-151.0,0.00019178,2]
[365467984,1749688249085,-528.89,0.00019178,2]
[365467985,1749688249094,-480.0,0.00019178,2]
[365467986,1749688249104,-795.54,0.00019178,2]
[365467987,1749688249113,-1059.05,0.00019178,2]
[365467988,1749688249123,-1724.25,0.00019178,2]
[365467989,1749688249133,-462.80846861,0.00019178,2]
[365467990,1749688249143,-151.0,0.00019178,2]
[365467991,1749688249153,-490.0,0.00019178,2]
[365467992,1749688249162,-490.0,0.00019178,2]
[365467993,1749688249171,-917.83,0.00019178,2]
[365467994,1749688249181,-490.0,0.00019178,2]
[365467995,1749688249190,-480.0,0.00019178,2]
[365467996,1749688249199,-490.0,0.00019178,2]
[365467997,1749688249208,-1345.9,0.00019178,2]
[365467998,1749688249221,-151.0,0.00019178,2]
[365467999,1749688249231,-1631.96,0.00019178,2]
[365468000,1749688249240,-490.0,0.00019178,2]
[365468001,1749688249249,-490.0,0.00019178,2]
[365468002,1749688249259,-490.0,0.00019178,2]
[365468003,1749688249268,-560.89,0.00019178,2]
[365468004,1749688249278,-490.0,0.00019178,2]
[365468005,1749688249286,-490.0,0.00019178,2]
[365468006,1749688249298,-151.0,0.00019178,2]
[365468007,1749688249312,-490.0,0.00019178,2]
[365468008,1749688249322,-490.0,0.00019178,2]
[365468009,1749688249331,-490.0,0.00019178,2]
[365468010,1749688249341,-490.0,0.00019178,2]
[365468011,1749688249350,-490.0,0.00019178,2]
[365468012,1749688249359,-490.0,0.00019178,2]
[365468013,1749688249369,-151.0,0.00019178,2]
[365468014,1749688249378,-490.0,0.00019178,2]
[365468015,1749688249388,-1375.4,0.00019178,2]
[365468016,1749688249397,-1419.14,0.00019178,2]
[365468017,1749688249407,-480.0,0.00019178,2]
[365468018,1749688249417,-750.25,0.00019178,2]
[365468019,1749688249427,-490.0,0.00019178,2]
[365468020,1749688249436,-420.0,0.00019178,2]
[365468021,1749688249445,-490.0,0.00019178,2]
[365468022,1749688249454,-490.0,0.00019178,2]
[365468023,1749688249463,-490.0,0.00019178,2]
[365468024,1749688249473,-490.0,0.00019178,2]
[365468025,1749688249481,-910.03,0.00019178,2]
[365468026,1749688249490,-762.18,0.00019178,2]
[365468027,1749688249499,-490.0,0.00019178,2]
[365468028,1749688249508,-480.0,0.00019178,2]
[365468029,1749688249518,-692.85,0.00019178,2]
[365468030,1749688249527,-1260.14,0.00019178,2]
[365468031,1749688249537,-1514.4,0.00019178,2]
[365468032,1749688249546,-200.0,0.00019178,2]
[365468033,1749688249555,-491.62165482,0.00019178,2]
[365468034,1749688249564,-480.0,0.00019178,2]
[365468035,1749688249574,-490.0,0.00019178,2]
[365468036,1749688249583,-640.26,0.00019178,2]
[365468037,1749688249593,-1113.72,0.00019178,2]
[365468038,1749688249604,-744.05,0.00019178,2]
[365468039,1749688249614,-480.0,0.00019178,2]
[365468040,1749688249624,-490.0,0.00019178,2]
[365468041,1749688249634,-490.0,0.00019178,2]
[365468042,1749688249645,-2626.83,0.00019178,2]
[365468043,1749688249655,-490.0,0.00019178,2]
[365468044,1749688249664,-151.0,0.00019178,2]
[365468045,1749688249674,-151.0,0.00019178,2]
[365468046,1749688249683,-151.0,0.00019178,2]
[365468047,1749688249692,-490.0,0.00019178,2]
[365468048,1749688249702,-480.0,0.00019178,2]
[365468049,1749688249712,-490.0,0.00019178,2]
[365468050,1749688249721,-1243.37,0.00019178,2]
[365468051,1749688249731,-774.397838,0.00019178,2]
[365468052,1749688249740,-490.0,0.00019178,2]
[365468053,1749688249750,-151.0,0.00019178,2]
[365468054,1749688249760,-490.0,0.00019178,2]
[365468055,1749688249771,-470.0,0.00019178,2]
[365468056,1749688249780,-151.0,0.00019178,2]
[365468057,1749688249790,-1000.0,0.00019178,2]
[365468058,1749688249799,-774.397838,0.00019178,2]
[365468059,1749688249809,-1080.9,0.00019178,2]
[365468060,1749688249818,-490.0,0.00019178,2]
[365468061,1749688249827,-490.0,0.00019178,2]
[365468062,1749688249836,-490.0,0.00019178,2]
[365468063,1749688249846,-151.0,0.00019178,2]
[365468064,1749688249856,-1232.35,0.00019178,2]
[365468065,1749688249866,-490.0,0.00019178,2]
[365468066,1749688249876,-1217.78,0.00019178,2]
[365468067,1749688249886,-2480.83,0.00019178,2]
[365468068,1749688249899,-490.0,0.00019178,2]
[365468069,1749688249908,-480.0,0.00019178,2]
[365468070,1749688249918,-482.90282252,0.00019178,2]
[365468071,1749688249928,-732.34,0.00019178,2]
[365468072,1749688249938,-819.3,0.00019178,2]
[365468073,1749688249947,-490.0,0.00019178,2]
[365468074,1749688249958,-4330.86,0.00019178,2]
[365468075,1749688249967,-500.0,0.00019178,2]
[365468076,1749688249977,-490.0,0.00019178,2]
[365468077,1749688249986,-423.23278565,0.00019178,2]
[365468078,1749688249995,-1028.37,0.00019178,2]
[365468079,1749688250005,-500.0,0.00019178,2]
[365468080,1749688250014,-490.0,0.00019178,2]
[365468081,1749688250242,-607.51,0.00019178,2]
[365468082,1749688250252,-1003.74,0.00019178,2]
[365468083,1749688250262,-500.0,0.00019178,2]
[365468084,1749688250271,-150.0,0.00019178,2]
[365468085,1749688250280,-500.0,0.00019178,2]
[365468086,1749688250290,-490.0,0.00019178,2]
[365468087,1749688250299,-1364.15,0.00019178,2]
[365468088,1749688250308,-151.0,0.00019178,2]
[365468089,1749688250317,-5253.91,0.00019178,2]
[365468090,1749688250327,-500.0,0.00019178,2]
[365468091,1749688250336,-150.0,0.00019178,2]
[365468092,1749688250346,-150.0,0.00019178,2]
[365468093,1749688250356,-977.53,0.00019178,2]
[365468094,1749688250365,-490.0,0.00019178,2]
[365468095,1749688250374,-490.0,0.00019178,2]
[365468096,1749688250383,-10428.65,0.00019178,2]
[365468097,1749688250394,-834.11,0.00019178,2]
[365468098,1749688250404,-645.96,0.00019178,2]
[365468099,1749688250413,-500.0,0.00019178,2]
[365468100,1749688250423,-480.0,0.00019178,2]
[365468101,1749688250432,-264.45303083,0.00019178,2]
[365468102,1749688250442,-480.0,0.00019178,2]
[365468103,1749688250451,-490.0,0.00019178,2]
[365468104,1749688250460,-1088.27,0.00019178,2]
[365468105,1749688250469,-490.0,0.00019178,2]
[365468106,1749688250478,-2360.85,0.00019178,2]
[365468107,1749688250487,-1389.99,0.00019178,2]
[365468108,1749688250496,-300.0,0.00019178,2]
[365468109,1749688250505,-500.0,0.00019178,2]
[365468110,1749688250514,-503.48,0.00019178,2]
[365468111,1749688250523,-1267.835182,0.00019178,2]
[365468112,1749688260120,200.0,0.0002465,120]
[365468113,1749688280413,205.0,0.0001776,2]
[365468115,1749688324467,400.0,0.00016384,2]
[365468116,1749688470747,150.0,0.00019685,120]
[365468117,1749688571220,326.12,0.00013699,2]
[365468119,1749688692058,202.0,0.00017329,2]
[365468120,1749688770540,150.0,0.00023463,120]
[365468121,1749689021275,1053.32,0.00016105,2]
[365468122,1749689051962,202.0,0.00017584,2]
[365468123,1749689112223,201.0,0.00017584,2]
[365468124,1749689160804,223.29,0.00017966,2]
[365468125,1749689180988,490.0,0.00024658,120]
[365468126,1749689196665,250.0,0.00017931,2]
[365468127,1749689213986,151.0,0.00017062,2]
[365468128,1749689217965,12625.0,0.00020001,29]
[365468129,1749689236084,784.0,0.00018,2]
[365468130,1749689238103,-167.36,0.00018021,2]
[365468131,1749689238128,-300.0,0.0001804,2]
[365468132,1749689238152,-250.0,0.00018055,2]
[365468133,1749689238175,-150.0,0.00018058,7]